fUSD/lending_fUSD_20240419
["ID","MTS","AMOUNT","RATE_DAILY","PERIOD"]
[322932450,1713529837547,-1000.0,0.00015521,2]
[322932451,1713529837556,-1000.0,0.00015521,2]
[322932452,1713529837565,-1000.0,0.00015521,2]
[322932453,1713529837575,-1000.0,0.00015521,2]
[322932454,1713529837584,-1000.0,0.00015521,2]
[322932455,1713529837594,-1000.0,0.00015521,2]
[322932456,1713529837603,-1000.0,0.00015521,2]
[322932457,1713529837617,-1000.0,0.00015521,2]
[322932458,1713529837626,-1000.0,0.00015521,2]
[322932459,1713529837635,-1000.0,0.00015521,2]
[322932460,1713529837645,-1000.0,0.00015521,2]
[322932461,1713529837657,-1000.0,0.00015521,2]
[322932462,1713529837666,-1000.0,0.00015521,2]
[322932463,1713529837676,-1000.0,0.00015521,2]
[322932464,1713529837687,-1000.0,0.00015521,2]
[322932465,1713529837697,-1000.0,0.00015521,2]
[322932467,1713529837707,-1000.0,0.00015521,2]
[322932469,1713529837717,-821.0,0.00015521,2]
[322932470,1713529837728,-22673.59,0.00015521,2]
[322932471,1713529837737,-271.20043807,0.00015521,2]
[322932472,1713529837746,-156.09131346,0.00015521,2]
[322932473,1713529837755,-10549.06282293,0.00015521,2]
[322932474,1713529837764,-206.14404155,0.00015521,2]
[322932475,1713529837774,-411.10939179,0.00015521,2]
[322932476,1713529837783,-1127.03271038,0.00015521,2]
[322932477,1713529837793,-448.04477231,0.00015521,2]
[322932478,1713529837803,-155.48220637,0.00015521,2]
[322932479,1713529837812,-631.3744135,0.00015521,2]
[322932480,1713529837822,-269.46070501,0.00015521,2]
[322932481,1713529837831,-326.32227901,0.00015521,2]
[322932482,1713529837841,-194.42275387,0.00015521,2]
[322932483,1713529837851,-155.0,0.00015521,2]
[322932484,1713529837861,-499.99,0.00015521,2]
[322932485,1713529837871,-1435.8166593,0.00015521,2]
[322932486,1713529837881,-250.83789323,0.00015521,2]
[322932487,1713529837891,-786.55541913,0.00015521,2]
[322932488,1713529837901,-708.39996951,0.00015521,2]
[322932489,1713529837910,-4573.26074924,0.00015521,2]
[322932490,1713529837920,-210.20024281,0.00015521,2]
[322932491,1713529837929,-253.29161642,0.00015521,2]
[322932492,1713529837943,-485.82894591,0.00015521,2]
[322932493,1713529837953,-2006.05,0.00015521,2]
[322932494,1713529837963,-560.57742418,0.00015521,2]
[322932495,1713529837972,-8331.13038189,0.00015521,3]
[322932496,1713529837981,-150.01,0.00015521,2]
[322932497,1713529837991,-3031.78637939,0.00015521,2]
[322932498,1713529838000,-500.0,0.00015521,2]
[322932499,1713529838009,-500.0,0.00015521,2]
[322932500,1713529838018,-500.0,0.00015521,2]
[322932501,1713529838028,-610.44,0.00015521,2]
[322932502,1713529838038,-1082.44,0.00015521,2]
[322932503,1713529838048,-500.0,0.00015521,2]
[322932504,1713529838057,-500.0,0.00015521,2]
[322932505,1713529838067,-1747.35,0.00015521,2]
[322932506,1713529838077,-887.1,0.00015521,2]
[322932507,1713529838086,-500.0,0.00015521,2]
[322932508,1713529838096,-500.0,0.00015521,2]
[322932509,1713529838105,-601.27,0.00015521,2]
[322932510,1713529838115,-500.0,0.00015521,2]
[322932511,1713529838124,-500.0,0.00015521,2]
[322932512,1713529838134,-1096.21,0.00015521,2]
[322932513,1713529838143,-500.0,0.00015521,2]
[322932514,1713529838153,-500.0,0.00015521,2]
[322932515,1713529838162,-1303.76,0.00015521,2]
[322932516,1713529838172,-1031.9,0.00015521,2]
[322932517,1713529838185,-1420.78,0.00015521,2]
[322932518,1713529838195,-1643.92,0.00015521,2]
[322932519,1713529838205,-500.0,0.00015521,2]
[322932520,1713529838215,-500.0,0.00015521,2]
[322932521,1713529838224,-500.0,0.00015521,2]
[322932522,1713529838234,-2366.46,0.00015521,2]
[322932523,1713529838244,-500.0,0.00015521,2]
[322932524,1713529838254,-500.0,0.00015521,2]
[322932525,1713529838264,-500.0,0.00015521,2]
[322932526,1713529838274,-646.23,0.00015521,2]
[322932527,1713529838283,-500.0,0.00015521,2]
[322932528,1713529838293,-500.0,0.00015521,2]
[322932529,1713529838302,-540.1,0.00015521,2]
[322932531,1713529838312,-500.0,0.00015521,2]
[322932533,1713529838321,-905.6,0.00015521,2]
[322932534,1713529838331,-680.09,0.00015521,2]
[322932537,1713529838341,-500.0,0.00015521,2]
[322932538,1713529838351,-2024.67,0.00015521,2]
[322932539,1713529838360,-885.31,0.00015521,2]
[322932541,1713529838369,-850.16,0.00015521,2]
[322932543,1713529838381,-500.0,0.00015521,2]
[322932545,1713529838390,-2175.72,0.00015521,2]
[322932546,1713529838400,-500.0,0.00015521,2]
[322932548,1713529838409,-500.0,0.00015521,2]
[322932551,1713529838419,-500.0,0.00015521,2]
[322932553,1713529838429,-500.0,0.00015521,2]
[322932555,1713529838441,-1155.01,0.00015521,2]
[322932557,1713529838451,-500.0,0.00015521,2]
[322932559,1713529838461,-500.0,0.00015521,2]
[322932560,1713529838471,-500.0,0.00015521,2]
[322932562,1713529838481,-1182.66,0.00015521,2]
[322932565,1713529838490,-500.0,0.00015521,2]
[322932567,1713529838501,-1887.94,0.00015521,2]
[322932568,1713529838511,-500.0,0.00015521,2]
[322932571,1713529838521,-1823.05,0.00015521,2]
[322932573,1713529838531,-1448.58,0.00015521,2]
[322932575,1713529838541,-500.0,0.00015521,2]
[322932576,1713529838551,-866.99,0.00015521,2]
[322932579,1713529838561,-2390.88,0.00015521,2]
[322932580,1713529838571,-500.0,0.00015521,2]
[322932582,1713529838581,-500.0,0.00015521,2]
[322932584,1713529838590,-1524.08,0.00015521,2]
[322932586,1713529838599,-500.0,0.00015521,2]
[322932588,1713529838610,-500.0,0.00015521,2]
[322932590,1713529838620,-500.0,0.00015521,2]
[322932592,1713529838630,-510.14,0.00015521,2]
[322932594,1713529838639,-500.0,0.00015521,2]
[322932596,1713529838652,-561.59,0.00015521,2]
[322932599,1713529838666,-500.0,0.00015521,2]
[322932601,1713529838675,-798.26,0.00015521,2]
[322932602,1713529838688,-620.04,0.00015521,2]
[322932604,1713529838697,-500.0,0.00015521,2]
[322932606,1713529838706,-500.0,0.00015521,2]
[322932608,1713529838715,-886.5,0.00015521,2]
[322932610,1713529838726,-2064.32,0.00015521,2]
[322932612,1713529838736,-1358.0,0.00015521,2]
[322932615,1713529838746,-798.57,0.00015521,2]
[322932617,1713529838755,-500.0,0.00015521,2]
[322932619,1713529838764,-674.69,0.00015521,2]
[322932620,1713529838775,-714.65,0.00015521,2]
[322932622,1713529838784,-500.0,0.00015521,2]
[322932625,1713529838795,-500.0,0.00015521,2]
[322932626,1713529838805,-765.17,0.00015521,2]
[322932628,1713529838816,-3437.47,0.00015521,2]
[322932631,1713529838825,-2153.04,0.00015521,2]
[322932632,1713529838834,-856.45,0.00015521,2]
[322932634,1713529838844,-1071.95,0.00015521,2]
[322932636,1713529838853,-500.0,0.00015521,2]
[322932638,1713529838862,-539.39,0.00015521,2]
[322932641,1713529838872,-500.0,0.00015521,2]
[322932643,1713529838882,-678.41,0.00015521,2]
[322932645,1713529838891,-546.33,0.00015521,2]
[322932646,1713529838901,-500.0,0.00015521,2]
[322932649,1713529838911,-500.0,0.00015521,2]
[322932650,1713529838922,-500.0,0.00015521,2]
[322932652,1713529838935,-3254.01,0.00015521,2]
[322932655,1713529838946,-2641.35,0.00015521,2]
[322932656,1713529838956,-500.0,0.00015521,2]
[322932659,1713529838966,-1241.5,0.00015521,2]
[322932661,1713529838979,-1760.53,0.00015521,2]
[322932663,1713529838990,-500.0,0.00015521,2]
[322932665,1713529839000,-500.0,0.00015521,2]
[322932667,1713529839010,-1040.27,0.00015521,2]
[322932669,1713529839020,-500.0,0.00015521,2]
[322932671,1713529839030,-500.0,0.00015521,2]
[322932673,1713529839040,-500.0,0.00015521,2]
[322932675,1713529839050,-583.65673425,0.00015521,2]
[322932677,1713529839060,-500.0,0.00015521,2]
[322932678,1713529839069,-2778.15,0.00015521,2]
[322932680,1713529839078,-500.0,0.00015521,2]
[322932682,1713529839088,-500.0,0.00015521,2]
[322932684,1713529839098,-1784.17,0.00015521,2]
[322932686,1713529839107,-781.65,0.00015521,2]
[322932688,1713529839116,-355.98,0.00015521,2]
[322932690,1713529839125,-390.24265509,0.00015521,2]
[322932692,1713529839134,-500.0,0.00015521,2]
[322932694,1713529839143,-500.0,0.00015521,2]
[322932696,1713529839152,-500.0,0.00015521,2]
[322932699,1713529839161,-856.98,0.00015521,2]
[322932701,1713529839171,-500.0,0.00015521,2]
[322932703,1713529839185,-500.0,0.00015521,2]
[322932704,1713529839197,-500.0,0.00015521,2]
[322932706,1713529839206,-319.96265176,0.00015521,2]
[322932708,1713529839215,-3043.4,0.00015521,2]
[322932710,1713529839224,-551.81,0.00015521,2]
[322932712,1713529839233,-2411.1,0.00015521,2]
[322932715,1713529839243,-547.41,0.00015521,2]
[322932716,1713529839252,-500.0,0.00015521,2]
[322932719,1713529839262,-500.0,0.00015521,2]
[322932720,1713529839272,-2774.52,0.00015521,2]
[322932722,1713529839281,-667.62,0.00015521,2]
[322932724,1713529839290,-500.0,0.00015521,2]
[322932727,1713529839300,-500.0,0.00015521,2]
[322932729,1713529839309,-792.14,0.00015521,2]
[322932730,1713529839318,-1106.72,0.00015521,2]
[322932733,1713529839328,-500.0,0.00015521,2]
[322932735,1713529839337,-500.0,0.00015521,2]
[322932737,1713529839347,-500.0,0.00015521,2]
[322932768,1713529839634,-3562.58,0.00015521,2]
[322932770,1713529839644,-500.0,0.00015521,2]
[322932773,1713529839658,-500.0,0.00015521,2]
[322932774,1713529839668,-1782.69,0.00015521,2]
[322932777,1713529839678,-656.93,0.00015521,2]
[322932779,1713529839690,-568.12,0.00015521,2]
[322932781,1713529839700,-1667.47,0.00015521,2]
[322932783,1713529839709,-500.0,0.00015521,2]
[322932785,1713529839719,-2831.35,0.00015521,2]
[322932787,1713529839729,-504.45031484,0.00015521,2]
[322932789,1713529839738,-4348.92,0.00015521,2]
[322932791,1713529839749,-500.0,0.00015521,2]
[322932793,1713529839758,-2336.53,0.00015521,2]
[322932795,1713529839767,-500.0,0.00015521,2]
[322932797,1713529839777,-500.0,0.00015521,2]
[322932799,1713529839786,-1225.33,0.00015521,2]
[322932801,1713529839795,-500.0,0.00015521,2]
[322932803,1713529839805,-500.0,0.00015521,2]
[322932805,1713529839814,-500.0,0.00015521,2]
[322932807,1713529839824,-500.0,0.00015521,2]
[322932808,1713529839833,-1041.52,0.00015521,2]
[322932809,1713529839842,-500.0,0.00015521,2]
[322932811,1713529839852,-500.0,0.00015521,2]
[322932812,1713529839861,-500.0,0.00015521,2]
[322932814,1713529839871,-500.0,0.00015521,2]
[322932815,1713529839881,-500.0,0.00015521,2]
[322932816,1713529839891,-500.0,0.00015521,2]
[322932817,1713529839900,-500.0,0.00015521,2]
[322932818,1713529839909,-500.0,0.00015521,2]
[322932819,1713529839918,-500.0,0.00015521,2]
[322932821,1713529839928,-500.0,0.00015521,2]
[322932823,1713529839941,-500.0,0.00015521,2]
[322932825,1713529839950,-500.0,0.00015521,2]
[322932827,1713529839959,-500.0,0.00015521,2]
[322932829,1713529839968,-500.0,0.00015521,2]
[322932831,1713529839978,-4202.92,0.00015521,2]
[322932833,1713529839987,-355.08795291,0.00015521,2]
[322932835,1713529839996,-500.0,0.00015521,2]
[322932837,1713529840006,-500.0,0.00015521,2]
[322932839,1713529840015,-602.80615778,0.00015521,2]
[322932841,1713529840024,-2486.51,0.00015521,2]
[322932843,1713529840033,-500.0,0.00015521,2]
[322932845,1713529840042,-500.0,0.00015521,2]
[322932847,1713529840051,-500.0,0.00015521,2]
[322932849,1713529840060,-500.0,0.00015521,2]
[322932851,1713529840070,-1219.1,0.00015521,2]
[322932853,1713529840079,-535.2,0.00015521,2]
[322932855,1713529840088,-500.0,0.00015521,2]
[322932857,1713529840097,-621.59,0.00015521,2]
[322932859,1713529840106,-503.26,0.00015521,2]
[322932862,1713529840116,-2656.8,0.00015521,2]
[322932864,1713529840125,-500.0,0.00015521,2]
[322932865,1713529840136,-500.0,0.00015521,2]
[322932868,1713529840146,-500.0,0.00015521,2]
[322932870,1713529840155,-1702.91,0.00015521,2]
[322932872,1713529840164,-500.0,0.00015521,2]
[322932874,1713529840173,-1655.59,0.00015521,2]
[322932876,1713529840182,-2736.66,0.00015521,2]
[322932878,1713529840194,-500.0,0.00015521,2]
[322932880,1713529840203,-500.0,0.00015521,2]
[322932882,1713529840211,-500.0,0.00015521,2]
[322932884,1713529840220,-500.0,0.00015521,2]
[322932886,1713529840229,-604.57952932,0.00015521,2]
[322932888,1713529840238,-800.19,0.00015521,2]
[322932890,1713529840247,-590.91,0.00015521,2]
[322932892,1713529840256,-1921.42,0.00015521,2]
[322932894,1713529840265,-500.0,0.00015521,2]
[322932896,1713529840275,-969.69,0.00015521,2]
[322932898,1713529840284,-1536.72,0.00015521,2]
[322932900,1713529840294,-500.0,0.00015521,2]
[322932902,1713529840303,-500.0,0.00015521,2]
[322932904,1713529840312,-500.0,0.00015521,2]
[322932906,1713529840321,-500.0,0.00015521,2]
[322932908,1713529840331,-2411.06,0.00015521,2]
[322932910,1713529840340,-500.0,0.00015521,2]
[322932912,1713529840350,-842.78,0.00015521,2]
[322932914,1713529840359,-3813.95,0.00015521,2]
[322932916,1713529840368,-500.0,0.00015521,2]
[322932918,1713529840376,-500.0,0.00015521,2]
[322932920,1713529840385,-500.0,0.00015521,2]
[322932922,1713529840395,-3350.72,0.00015521,2]
[322932924,1713529840404,-185.29915267,0.00015521,2]
[322932926,1713529840413,-500.0,0.00015521,2]
[322932928,1713529840422,-500.0,0.00015521,2]
[322932930,1713529840432,-500.0,0.00015521,2]
[322932932,1713529840443,-2003.96,0.00015521,2]
[322932934,1713529840453,-519.74,0.00015521,2]
[322932936,1713529840462,-4460.86,0.00015521,2]
[322932938,1713529840472,-107.17016746,0.00015521,2]
[322933039,1713529841408,-888.50890406,0.00015521,2]
[322933040,1713529841446,-748.42002,0.00015521,2]
[322933041,1713529841458,-891.91090848,0.00015521,2]
[322933042,1713529841467,-1461.79,0.00015521,2]
[322933043,1713529841477,-500.0,0.00015521,2]
[322933044,1713529841486,-1075.58,0.00015521,2]
[322933045,1713529841496,-803.79191146,0.00015521,2]
[322933046,1713529841507,-533.80808854,0.00015521,2]
[322933047,1713529841517,-262.34935421,0.00015521,2]
[322933050,1713529841566,-237.65064579,0.00015521,2]
[322933053,1713529841699,-212.74626635,0.00015521,2]
[322933055,1713529841711,-348.30373365,0.00015521,2]
[322933057,1713529841722,-184.06756364,0.00015521,2]
[322933095,1713529844679,-339.69713578,0.00015517,2]
[322933096,1713529844698,-161.61188564,0.00015517,2]
[322933097,1713529844708,-746.26012464,0.00015517,2]
[322933098,1713529844755,-453.14987536,0.00015517,2]
[322933099,1713529844765,-5172.81012464,0.00015518,2]
[322933100,1713529844793,-678.18366,0.00015518,2]
[322933101,1713529844806,-1377.80621536,0.00015518,2]
[322933102,1713529844816,-500.0,0.00015519,2]
[322933103,1713529844826,-370.92243636,0.00015521,2]
[322933104,1713529844836,-500.0,0.00015521,2]
[322933105,1713529844845,-652.83,0.00015521,2]
[322933106,1713529844855,-203.96860494,0.00015521,2]
[322933107,1713529844865,-500.0,0.00015521,2]
[322933108,1713529844874,-500.0,0.00015521,2]
[322933109,1713529844884,-2520.97,0.00015521,2]
[322933110,1713529844894,-500.0,0.00015521,2]
[322933111,1713529844903,-933.17,0.00015521,2]
[322933112,1713529844913,-817.58,0.00015521,2]
[322933113,1713529844922,-500.0,0.00015521,2]
[322933114,1713529844931,-500.0,0.00015521,2]
[322933115,1713529844946,-500.0,0.00015521,2]
[322933116,1713529844955,-1522.01,0.00015521,2]
[322933117,1713529844965,-2602.53,0.00015521,2]
[322933118,1713529844974,-500.0,0.00015521,2]
[322933119,1713529844988,-2225.63,0.00015521,2]
[322933120,1713529844998,-500.0,0.00015521,2]
[322933121,1713529845009,-1454.91,0.00015521,2]
[322933122,1713529845024,-887.35,0.00015521,2]
[322933123,1713529845034,-500.0,0.00015521,2]
[322933124,1713529845043,-797.16,0.00015521,2]
[322933125,1713529845054,-500.0,0.00015521,2]
[322933126,1713529845064,-803.12,0.00015521,2]
[322933127,1713529845075,-500.0,0.00015521,2]
[322933128,1713529845085,-1772.94,0.00015521,2]
[322933129,1713529845096,-500.0,0.00015521,2]
[322933130,1713529845106,-500.0,0.00015521,2]
[322933131,1713529845115,-3842.86,0.00015521,2]
[322933132,1713529845125,-500.0,0.00015521,2]
[322933133,1713529845135,-1781.32,0.00015521,2]
[322933134,1713529845145,-500.0,0.00015521,2]
[322933135,1713529845154,-3066.32,0.00015521,2]
[322933136,1713529845164,-500.0,0.00015521,2]
[322933137,1713529845173,-553.62,0.00015521,2]
[322933138,1713529845183,-500.0,0.00015521,2]
[322933139,1713529845197,-549.28,0.00015521,2]
[322933140,1713529845208,-500.0,0.00015521,2]
[322933141,1713529845218,-500.0,0.00015521,2]
[322933142,1713529845228,-500.0,0.00015521,2]
[322933143,1713529845238,-500.0,0.00015521,2]
[322933144,1713529845248,-642.51,0.00015521,2]
[322933145,1713529845258,-500.0,0.00015521,2]
[322933146,1713529845269,-500.0,0.00015521,2]
[322933147,1713529845279,-500.0,0.00015521,2]
[322933148,1713529845289,-535.12,0.00015521,2]
[322933149,1713529845298,-593.02,0.00015521,2]
[322933150,1713529845308,-1095.97,0.00015521,2]
[322933151,1713529845317,-1060.49,0.00015521,2]
[322933152,1713529845327,-500.0,0.00015521,2]
[322933153,1713529845337,-1049.69,0.00015521,2]
[322933154,1713529845346,-1467.11,0.00015521,2]
[322933155,1713529845356,-1165.89,0.00015521,2]
[322933156,1713529845366,-500.0,0.00015521,2]
[322933157,1713529845376,-500.0,0.00015521,2]
[322933158,1713529845386,-701.72,0.00015521,2]
[322933159,1713529845395,-533.08415607,0.00015521,2]
[322933160,1713529845405,-500.0,0.00015521,2]
[322933161,1713529845415,-1216.39,0.00015521,2]
[322933162,1713529845425,-593.6,0.00015521,2]
[322933163,1713529845437,-500.0,0.00015521,2]
[322933164,1713529845447,-2528.13,0.00015521,2]
[322933165,1713529845730,-2592.77,0.00015521,2]
[322933166,1713529845754,-500.0,0.00015521,2]
[322933167,1713529845764,-644.97,0.00015521,2]
[322933168,1713529845773,-5959.36,0.00015521,2]
[322933169,1713529845783,-750.33,0.00015521,2]
[322933171,1713529845793,-1457.49,0.00015521,2]
[322933172,1713529845802,-1117.49,0.00015521,2]
[322933174,1713529845811,-500.0,0.00015521,2]
[322933176,1713529845821,-1349.99,0.00015521,2]
[322933178,1713529845831,-500.0,0.00015521,2]
[322933180,1713529845840,-1682.04,0.00015521,2]
[322933182,1713529845849,-500.0,0.00015521,2]
[322933184,1713529845858,-917.71,0.00015521,2]
[322933186,1713529845869,-500.0,0.00015521,2]
[322933188,1713529845878,-5239.2,0.00015521,2]
[322933190,1713529845888,-627.63,0.00015521,2]
[322933192,1713529845897,-3127.1,0.00015521,2]
[322933194,1713529845906,-874.11,0.00015521,2]
[322933197,1713529845918,-500.0,0.00015521,2]
[322933198,1713529845927,-1128.12,0.00015521,2]
[322933202,1713529845941,-594.28,0.00015521,2]
[322933204,1713529845950,-500.0,0.00015521,2]
[322933206,1713529845959,-2639.5,0.00015521,2]
[322933208,1713529845969,-610.30898393,0.00015521,2]
[322933210,1713529845978,-500.0,0.00015521,2]
[322933212,1713529845987,-3661.12,0.00015521,2]
[322933214,1713529845997,-500.0,0.00015521,2]
[322933216,1713529846007,-500.0,0.00015521,2]
[322933218,1713529846016,-500.0,0.00015521,2]
[322933220,1713529846026,-687.36,0.00015521,2]
[322933222,1713529846036,-1190.39,0.00015521,2]
[322933224,1713529846046,-724.35,0.00015521,2]
[322933226,1713529846055,-500.0,0.00015521,2]
[322933227,1713529846065,-500.0,0.00015521,2]
[322933229,1713529846075,-375.24355879,0.00015521,2]
[322933231,1713529846085,-2723.36,0.00015521,2]
[322933232,1713529846094,-591.58,0.00015521,2]
[322933234,1713529846104,-500.0,0.00015521,2]
[322933236,1713529846113,-2974.03,0.00015521,2]
[322933237,1713529846123,-589.98797431,0.00015521,2]
[322933239,1713529846133,-500.0,0.00015521,2]
[322933241,1713529846143,-1165.59,0.00015521,2]
[322933242,1713529846153,-500.0,0.00015521,2]
[322933244,1713529846162,-500.0,0.00015521,2]
[322933246,1713529846171,-511.10626029,0.00015521,2]
[322933247,1713529846181,-2411.26,0.00015521,2]
[322933249,1713529846194,-500.0,0.00015521,2]
[322933250,1713529846203,-1663.47,0.00015521,2]
[322933252,1713529846213,-1336.84,0.00015521,2]
[322933253,1713529846223,-2151.71,0.00015521,2]
[322933255,1713529846232,-1870.23,0.00015521,2]
[322933256,1713529846242,-1185.08,0.00015521,2]
[322933258,1713529846251,-516.65072114,0.00015521,2]
[322933259,1713529846260,-500.0,0.00015521,2]
[322933260,1713529846270,-500.0,0.00015521,2]
[322933261,1713529846279,-500.0,0.00015521,2]
[322933262,1713529846288,-663.0,0.00015521,2]
[322933263,1713529846297,-500.0,0.00015521,2]
[322933264,1713529846306,-500.0,0.00015521,2]
[322933265,1713529846315,-1789.64,0.00015521,2]
[322933266,1713529846324,-554.34,0.00015521,2]
[322933267,1713529846333,-500.0,0.00015521,2]
[322933268,1713529846342,-500.0,0.00015521,2]
[322933269,1713529846351,-500.0,0.00015521,2]
[322933270,1713529846360,-673.57,0.00015521,2]
[322933271,1713529846369,-1319.65,0.00015521,2]
[322933272,1713529846379,-500.0,0.00015521,2]
[322933273,1713529846388,-1338.81,0.00015521,2]
[322933274,1713529846397,-1466.03,0.00015521,2]
[322933275,1713529846407,-500.0,0.00015521,2]
[322933276,1713529846416,-1554.22,0.00015521,2]
[322933277,1713529846426,-858.97,0.00015521,2]
[322933278,1713529846439,-2385.56,0.00015521,2]
[322933279,1713529846448,-500.0,0.00015521,2]
[322933280,1713529846457,-2076.84,0.00015521,2]
[322933281,1713529846466,-500.0,0.00015521,2]
[322933282,1713529846475,-2988.54,0.00015521,2]
[322933283,1713529846484,-500.0,0.00015521,2]
[322933284,1713529846493,-500.0,0.00015521,2]
[322933285,1713529846502,-563.54,0.00015521,2]
[322933286,1713529846511,-500.0,0.00015521,2]
[322933287,1713529846521,-500.0,0.00015521,2]
[322933288,1713529846530,-2125.82,0.00015521,2]
[322933289,1713529846539,-500.0,0.00015521,2]
[322933290,1713529846549,-500.0,0.00015521,2]
[322933291,1713529846557,-3252.08,0.00015521,2]
[322933292,1713529846567,-500.0,0.00015521,2]
[322933293,1713529846577,-500.0,0.00015521,2]
[322933294,1713529846585,-808.28,0.00015521,2]
[322933295,1713529846594,-500.0,0.00015521,2]
[322933296,1713529846603,-500.0,0.00015521,2]
[322933297,1713529846613,-500.0,0.00015521,2]
[322933298,1713529846622,-500.0,0.00015521,2]
[322933299,1713529846631,-1252.72,0.00015521,2]
[322933300,1713529846640,-1417.28,0.00015521,2]
[322933301,1713529846650,-1023.35,0.00015521,2]
[322933302,1713529846660,-500.0,0.00015521,2]
[322933303,1713529846669,-626.14,0.00015521,2]
[322933304,1713529846679,-786.49,0.00015521,2]
[322933305,1713529846692,-1676.9,0.00015521,2]
[322933306,1713529846702,-933.13,0.00015521,2]
[322933307,1713529846711,-500.0,0.00015521,2]
[322933308,1713529846720,-500.0,0.00015521,2]
[322933309,1713529846730,-500.0,0.00015521,2]
[322933310,1713529846739,-500.0,0.00015521,2]
[322933311,1713529846748,-500.0,0.00015521,2]
[322933312,1713529846757,-572.78,0.00015521,2]
[322933313,1713529846766,-1520.21,0.00015521,2]
[322933314,1713529846775,-500.0,0.00015521,2]
[322933315,1713529846785,-500.0,0.00015521,2]
[322933316,1713529846794,-589.84,0.00015521,2]
[322933317,1713529846803,-753.17,0.00015521,2]
[322933318,1713529846812,-500.0,0.00015521,2]
[322933319,1713529846821,-1124.1,0.00015521,2]
[322933320,1713529846830,-2854.18,0.00015521,2]
[322933321,1713529846839,-998.7,0.00015521,2]
[322933322,1713529846849,-3420.64,0.00015521,2]
[322933323,1713529846859,-500.0,0.00015521,2]
[322933324,1713529846868,-2730.97,0.00015521,2]
[322933325,1713529846877,-500.0,0.00015521,2]
[322933326,1713529846886,-767.08,0.00015521,2]
[322933327,1713529846895,-778.41,0.00015521,2]
[322933328,1713529846904,-728.62,0.00015521,2]
[322933329,1713529846913,-1477.86,0.00015521,2]
[322933330,1713529846922,-500.0,0.00015521,2]
[322933331,1713529846931,-1744.72,0.00015521,2]
[322933332,1713529846946,-1022.03,0.00015521,2]
[322933333,1713529846955,-612.94,0.00015521,2]
[322933334,1713529846965,-500.0,0.00015521,2]
[322933335,1713529846974,-500.0,0.00015521,2]
[322933336,1713529846983,-2632.82,0.00015521,2]
[322933337,1713529846992,-500.0,0.00015521,2]
[322933338,1713529847001,-1066.36,0.00015521,2]
[322933339,1713529847010,-1678.54,0.00015521,2]
[322933340,1713529847019,-526.39071583,0.00015521,2]
[322933341,1713529847029,-1612.29,0.00015521,2]
[322933342,1713529847038,-545.94,0.00015521,2]
[322933343,1713529847047,-500.0,0.00015521,2]
[322933344,1713529847056,-987.67,0.00015521,2]
[322933345,1713529847065,-475.17398035,0.00015521,2]
[322933346,1713529847074,-500.0,0.00015521,2]
[322933347,1713529847083,-3014.26,0.00015521,2]
[322933348,1713529847093,-516.81229608,0.00015521,2]
[322933349,1713529847102,-4667.66,0.00015521,2]
[322933350,1713529847111,-1654.34,0.00015521,2]